Cogmind - Beta 12 @@@ ROGUE MODE // 2024.01.10 @ 17:29:00 Player: sasha Result: Destroyed by G-47 Trooper with Particle Gun Performance ------------- Evolutions (0) 0 Regions Visited (1) 200 Robots Destroyed (15) 75 Value Destroyed (401) 401 Prototype IDs (0) 0 Alien Tech Used (0) 0 Bonus (0) 0 TOTAL SCORE: 676 Bonus ------- None Cogmind --------- Core Integrity 0/250 Matter 264/300 Energy 100/100 System Corruption 0% Temperature Cool (9) Movement Treading (160) Location -10/Materials Parts ------- > --- POWER (1) -------- (None) > --- PROPULSION (2) --- Light Treads Light Treads > --- UTILITY (2) ------ Large Storage Unit Targeting Computer > --- WEAPON (2) ------- Light Assault Rifle > --- INVENTORY (15) --- Ion Engine Ion Engine Wheel High-capacity Battery (250) Improved Terrain Scanner Mining Laser Peak State ------------ > --- POWER ------------ Ion Engine > --- PROPULSION ------- Aluminum Leg Aluminum Leg > --- UTILITY ---------- Small Storage Unit Targeting Computer > --- WEAPON ----------- Medium Laser Assault Rifle > --- INVENTORY -------- Ion Engine Ion Engine Light Treads Light Treads Wheel High-capacity Battery Improved Terrain Scanner Mining Laser [Rating: 8] Favorites ----------- Power Ion Engine Engine Ion Engine Propulsion Aluminum Leg Treads Light Treads Leg Aluminum Leg Utility Small Storage Unit Storage Small Storage Unit Processor Targeting Computer Weapon Assault Rifle Energy Gun Medium Laser Ballistic Gun Assault Rifle Build | -11 -10 ------- Run | Jun Mat Slots Evolved . | . . Power . | . . Propulsion . | . . Utility . | . . Weapon . | . . Parts Attached 14 | 8 6 Power 2 | 1 1 Engine 2 | 1 1 Core . | . . Reactor . | . . Propulsion 5 | 3 2 Treads 3 | 1 2 Leg 2 | 2 . Wheel . | . . Hover . | . . Flight . | . . Utility 4 | 2 2 Device . | . . Storage 3 | 2 1 Processor 1 | . 1 Hackware . | . . Protection . | . . Artifact . | . . Weapon 3 | 2 1 Energy Gun 1 | 1 . Energy Cannon . | . . Ballistic Gun 2 | 1 1 Ballistic Cannon . | . . Launcher . | . . Special Weapon . | . . Impact Weapon . | . . Slashing Weapon . | . . Piercing Weapon . | . . Special Melee Weapon . | . . Unidentified Prototypes . | . . Parts Lost 5 | . 5 Power 1 | . 1 Propulsion 2 | . 2 Utility . | . . Weapon 2 | . 2 Highest Loss Streak 4 | . 4 To Critical Strikes . | . . Average Slot Usage (%) 87 | . 87 Engine 11 | . 11 Leg 25 | . 25 Storage 14 | . 14 Processor 10 | . 10 Energy Gun 11 | . 11 Ballistic Gun 12 | . 12 Naked Turns . | . . Heaviest Build 29 | 19 29 Greatest Support 40 | 20 40 Greatest Overweight (x) 6 | 1 6 Average Overweight (x) . | . . Largest Inventory Capacity 15 | 8 15 Average Capacity 10 | 7 10 Most Carried 9 | 6 9 Average Carried 6 | 3 7 Final Capacity 15 | 8 15 Final Carried 6 | 5 6 Class Distribution -------------------- 100% | Mutant Dominant Class ---------------- Mutant | -10/Materials Resources | -11 -10 ----------- Run | Jun Mat Matter Collected 451 | 251 200 Remotely . | . . Salvage Created 637 | 76 561 Parts 20 | 4 16 Haulers Intercepted 2 | . 2 Recyclers Shooed 2 | 1 1 Parts Field Recycled . | . . Retrieved Matter . | . . Parts Self-Destructed . | . . Prevented . | . . Kills | -11 -10 ------- Run | Jun Mat Combat Hostiles Destroyed 11 | . 11 Guns 10 | . 10 Classes Destroyed 4 | 2 2 Tunneler 1 | 1 . Hauler 2 | . 2 Recycler 1 | 1 . Grunt 11 | . 11 Best Kill Streak 3 | 1 3 Combat Bots Only 3 | . 3 Max Kills in Single Turn 1 | 1 1 Gunslinging . | . . Exploded . | . . Melee . | . . Uniques/NPCs Destroyed . | . . Combat | -11 -10 -------- Run | Jun Mat Damage Taken 810 | . 810 Core 256 | . 256 Absorbed by Shields . | . . Core Remaining (%) 100 | 100 . Volleys Fired 60 | 7 53 Largest 2 | 2 2 Hottest 70 | 70 70 Shots Fired 114 | 14 100 Gun 114 | 14 100 Cannon . | . . Launcher . | . . Special . | . . Kinetic 60 | 7 53 Thermal 54 | 7 47 Explosive . | . . Electromagnetic . | . . Robot Hit Streak 15 | 4 15 Robot Miss Streak 2 | 2 2 Penetration Max . | . . Secondary Targets 1 | . 1 Max Gunslinging Chain 1 | . 1 Shots Hit Robots 81 | 9 72 Core Hits 29 | 3 26 Critical Kills 1 | . 1 Critical Parts Destroyed . | . . Critical Strikes 8 | 1 7 Burn 7 | 1 6 Destroy 1 | . 1 Melee Attacks . | . . Impact . | . . Slashing . | . . Piercing . | . . Sneak Attacks . | . . Combat Hostiles . | . . Follow-up Attacks . | . . Damage Inflicted 1041 | 128 913 Guns 1038 | 128 910 Cannons . | . . Explosions . | . . Melee . | . . Ramming 3 | . 3 Kinetic 575 | 64 511 Thermal 463 | 64 399 Explosive . | . . Electromagnetic . | . . Impact . | . . Slashing . | . . Piercing . | . . Highest Corruption . | . . Average Corruption . | . . Corruption Purged . | . . Corruption Blocked . | . . Overload Shots . | . . Overflow Damage . | . . Projectiles . | . . Explosions . | . . Melee . | . . Knockbacks . | . . Impact . | . . Kinetic . | . . Secondary . | . . Self-Inflicted Damage . | . . Shots . | . . Rammed . | . . Targets Rammed 2 | . 2 Kicked 2 | . 2 Crushed . | . . Highest Temperature 192 | 36 192 Average Temperature 52 | 15 57 Received Heat Transfer 453 | . 453 Siege Activations . | . . Robots Corrupted . | . . Combat Hostiles . | . . Parts Fried . | . . Impact Corruptions . | . . Robots Melted 1 | . 1 Combat Hostiles 1 | . 1 Parts Melted . | . . Heat Transferred 1887 | 259 1628 Parts Sabotaged . | . . Parts Stolen . | . . Parts Stripped . | . . Power Chain Reactions . | . . Missiles Intercepted . | . . Alert | -11 -10 ------- Run | Jun Mat Peak Influence 249 | 10 249 Initial 6 | . 6 Average 113 | 2 136 Maximum Alert Level 1 | . 1 Low Security (%) 87 | 100 84 Level 1 12 | . 15 Level 2 . | . . Level 3 . | . . Level 4 . | . . Level 5 . | . . High Security . | . . Max Security . | . . Squads Dispatched 4 | . 4 Investigation 2 | . 2 Extermination . | . . Reinforcement 2 | . 2 Assault . | . . Garrison . | . . Intercept . | . . Searches Triggered . | . . Construction Impeded . | . . Haulers Reinforced . | . . Active Scanning Responses . | . . Cargo Convoy Interrupts . | . . Stealth | -11 -10 --------- Run | Jun Mat Distress Signals 1 | . 1 Communications Jammed . | . . Distress Signals . | . . Times Spotted 18 | . 18 Peak Tracking Total 4 | . 4 Tactical Retreats 1 | . 1 Traps | -11 -10 ------- Run | Jun Mat Traps Triggered 1 | . 1 Indirectly . | . . Trap Hack Attempts . | . . Triggered . | . . Disarmed . | . . Reprogrammed . | . . Reused . | . . Traps Extracted . | . . Installed . | . . Triggered . | . . Machines | -11 -10 ---------- Run | Jun Mat Machines Disabled 1 | . 1 Max in Single Turn 1 | . 1 Machines Repaired . | . . Machines Sabotaged . | . . Overloaded Fab Kills . | . . Hacking | -11 -10 --------- Run | Jun Mat Machines Accessed 2 | . 2 Terminals 2 | . 2 Fabricators . | . . Repair Stations . | . . Recycling Units . | . . Scanalyzers . | . . Garrison Access . | . . Total Hacks 3 | . 3 Successful 1 | . 1 Failed 2 | . 2 Catastrophic . | . . Database Lockouts . | . . Manual 3 | . 3 Terminals 3 | . 3 Fabricators . | . . Repair Stations . | . . Recycling Units . | . . Scanalyzers . | . . Garrison Access . | . . Terminal Hacks 1 | . 1 Branch Access Points 1 | . 1 Fabricator Hacks . | . . Repair Station Hacks . | . . Recycling Unit Hacks . | . . Scanalyzer . | . . Garrison Access Hacks . | . . Unauthorized Hacks . | . . Terminals . | . . Fabricators . | . . Repair Stations . | . . Recycling Units . | . . Scanalyzers . | . . Garrison Access . | . . Data Cores Recovered . | . . Used . | . . Hacking Detections 2 | . 2 Full Trace Events 1 | . 1 Feedback Events . | . . Feedback Blocked . | . . Robot Schematics Acquired . | . . Robots Built . | . . Authchips . | . . Time . | . . Total Robot Build Rating . | . . Part Schematics Acquired . | . . Parts Built . | . . Authchips . | . . Time . | . . Total Part Build Rating . | . . Parts Repaired . | . . Time . | . . Parts Recycled . | . . Recycled Matter . | . . Retrieved Matter . | . . Retrieved Components . | . . Parts Scanalyzed . | . . Part Schematics Acquired . | . . Parts Damaged . | . . Bothacking | -11 -10 ------------ Run | Jun Mat Used RIF Installer . | . . Robots Hacked . | . . Non-combat . | . . Combat . | . . Robot Hacks Applied . | . . Relay Couplers Released . | . . Fabnet Peak Effective % . | . . Robots Rewired . | . . Allies Hacked . | . . Hacks Repelled . | . . Allies | -11 -10 -------- Run | Jun Mat Total Allies . | . . Largest Group . | . . Highest-Rated Group . | . . Highest-Rated Ally . | . . Total Orders . | . . Ally Attacks . | . . Total Damage . | . . Kills . | . . Allies Corrupted . | . . Allies Melted . | . . Intel | -11 -10 ------- Run | Jun Mat Robot Analysis Total . | . . Derelict Logs Recovered . | . . Drone Launches . | . . Drone Recoveries . | . . Exploration | -11 -10 ------------- Run | Jun Mat Turns Passed 709 | 125 584 Spaces Moved 358 | 84 274 Core 26 | 25 1 Treads 7 | 3 4 Legs 325 | 56 269 Wheels . | . . Hover . | . . Flight . | . . Fastest Speed 50 | 50 120 Average Speed 134 | 102 144 Slowest Speed 350 | 160 350 Overloaded Moves . | . . Propulsion Burnouts . | . . Robots Hopped . | . . Cave-ins Triggered . | . . Exploration Rate (%) 25 | 5 46 Regions Visited 1 Branch Regions . Pre-discovered Areas . | . . Known Exits Taken . | . . Unknown Exits Taken 1 | 1 . Scrap Searched . | . . Spaces Dug . | . . Terrain Destroyed . | . . Melee . | . . Projectile . | . . AOE . | . . Terrain Rammed . | . . Walls Destroyed . | . . Machines Disabled . | . . Actions | -11 -10 --------- Run | Jun Mat Total 471 | 108 363 Wait 19 | . 19 Move 357 | 83 274 Hop . | . . Pick Up 15 | 9 6 Fast Attach 3 | 3 . Attach 10 | 5 5 Detach 1 | 1 . Swap 1 | . 1 Drop 3 | . 3 Fire 60 | 7 53 Melee . | . . Ram . | . . Kick 2 | . 2 Crush . | . . Escape Stasis . | . . Rewire . | . . Trap . | . . Miscellaneous . | . . Route ------- -11/Junkyard -10/Materials (discovered 2 exits: [*Mat] / *Min) History --------- Turn | Location | Event 12 | -11/Junkyard | Discovered new exit (range 15) 126 | -11/Junkyard | Entered Materials 303 | -10/Materials | Build established: Mutant 326 | -10/Materials | Discovered new exit (range 13) 405 | -10/Materials | Identified exit to Mines 616 | -10/Materials | Core integrity fell below 50% 667 | -10/Materials | Lost 4 parts (1p1n2w) 680 | -10/Materials | Core integrity fell below 20% 710 | -10/Materials | Destroyed by G-47 Trooper with Particle Gun Last Messages --------------- 00550_ G-34 Mercenary suffers critical hit (Burn). 00553_ G-34 Mercenary destroyed. 00556_ Acquired 12 matter. 00564_ R-06 Scavenger collects Heat Sink. 00599_ G-34 Mercenary destroyed. 00611_ Assault Rifle destroyed. 00613_ Med. Laser destroyed. 00614_ Kicked G-47 Trooper. 00616_ Kicked G-47 Trooper out of the way. 00618_ U-05 Engineer builds a Door. 00620_ O-16 Technician: "IFF HANDSHAKE FAILED. SECURING TERMINAL." 00621_ Aluminum Leg destroyed. 00627_ ALERT: Hostiles spotted, dispatching reinforcements to Terminal M005. 00628_ K-01 Serf collects debris. 00629_ Hadron Collector disabled. 00636_ Lgt. Ion Engine destroyed. 00643_ K-01 Serf collects debris. 00685_ Aluminum Leg destroyed. 00698_ Acquired Lgt. Assault Rifle. Map ----- +----------------------------------------------------+ | | | | | | | | | | | | | | | | | | | | | | | | | | | | | | | | | | | | | | | | | | | | | | | | | ????????????###########??????????????????? | | ????????????# ! @ #######????????????? | | ????????????#!! ##! !!##???????????? | | ????????????#! | #! !#???????????? | | ????????????# g # #???????????? | | ?????##############+### ##???????????? | | ?????# #???#####????? | | ?????#[####################%#???# ####?? | | ?????#%#????????# !##%#???# ## ## | | ?????# #????????# """ ## #???# ## ? | | ?????# #??#####?# """ ## ##### ###+## | | ?????# #?##"""### """ # | | ?????# ###"!!!"## / | | ?????# ##"" ""# """ ""# | | ?????# ## # """ T"############### | | ?????#!## > # """ ""#?????????????# | | ?????#%## # #?????????????# | | ?????#[## #####+####?????????????# | | ?????# #?# #????# #????????????????# | | ???###+#### #?????# #????????????????# | | ???# # ####### ###?????????????## | | ???# """ += #####?????????# | | ???# """ # +?????????# | | ???# """ # #####???????? + T | | ???# """ ## ######??????????? # | | ???# ## " " #???????????????" # | +----------------------------------------------------+ Best States ------------- Heat Dissipation 25 Energy Generation 10 Energy Capacity 250 Matter Stores 300 Matter Capacity 300 Sight Range 16 Terrain Scan Density 10 Evasion (%) 55 Targeting Accuracy 5 Recoil Reduction 2 Item Schematics ----------------- None Robot Schematics ------------------ None Fabricated ------------ Nothing Alien Tech Used ----------------- None Achievements -------------- None Challenges ------------ None Game ------ Seed GodComponentBlaster Manual? 0 Play Time 00:06:41 Cumulative 68.4 hours Start 2024.01.10 @ 17:23:08 End 2024.01.10 @ 17:29:00 Sessions 1 Manual Loads 0 Difficulty Rogue Special Mode None Game No. 83 Rogue 83 Adventurer 0 Explorer 0 Win Type - Total 0 Types 0/0/0/0/0/0/0/0/0 Lore% 32 Gallery% 41 Achievement% 33 Wizard Run 0 Options --------- ASCII 0 Keyboard 0 Movement Mouse Keybinds 0 Fullscreen 2 Font 24/Smallcaps Map View 76x50 Tactical HUD 1 Map Filters NONE Filters NONE Steam 1 RUN: 81af7753-34ec-48c5-9869-ef7a6741763b